{"text_format":"1","workbook":"xlsx","n_sheets":1,"sheets":["informes"],"not_rendered":{"charts":0,"images":0,"macros":1,"external_links":0,"defined_names":0,"comments":1,"pivot_tables":0},"unopened":[],"bounds":{"document_bytes":16777216,"sheet_cells":100000,"rows_first":2000,"rows_last":500,"rows_between":2000,"halvings":0,"cell_chars":16384,"cell_head_chars":4096},"cells_cut":0,"cells_raw":0,"read":"whole","date_system":"1900"}

{"sheet":"informes","index":0,"n_rows":204,"n_cols":7,"rows_kept":204,"cut":false,"hidden":false,"merged":[]}
[null,"Directorio de trabajo:","D:\\raul\\wordpress\\unir_excel"]
[null,"Extensión de los libros","xls"]
[null,"Libro final","todos_unidos"]
["Archivos","Archivos seleccionados"]
["importe1.xlsx",null,null,null,null,{"$f":"MID(A5,1,FIND(\".\",A5)-1)","v":"importe1"},{"$f":"CONCATENATE(F5,\".zip\")","v":"importe1.zip"}]
["importe2.xlsx",null,null,null,null,{"$f":"MID(A6,1,FIND(\".\",A6)-1)","v":"importe2"},{"$f":"CONCATENATE(F6,\".zip\")","v":"importe2.zip"}]
["importe3.xlsx",null,null,null,null,"importe3",{"$f":"CONCATENATE(F7,\".zip\")","v":"importe3.zip"}]
[null,null,null,null,null,{"$error":"#VALUE!"},{"$error":"#VALUE!"}]
[null,null,null,null,null,{"$error":"#VALUE!"},{"$error":"#VALUE!"}]
[null,null,null,null,null,{"$error":"#VALUE!"},{"$error":"#VALUE!"}]
[null,null,null,null,null,{"$error":"#VALUE!"},{"$error":"#VALUE!"}]
[null,null,null,null,null,{"$error":"#VALUE!"},{"$error":"#VALUE!"}]
[null,null,null,null,null,{"$error":"#VALUE!"},{"$error":"#VALUE!"}]
[null,null,null,null,null,{"$error":"#VALUE!"},{"$error":"#VALUE!"}]
[null,null,null,null,null,{"$error":"#VALUE!"},{"$error":"#VALUE!"}]
[null,null,null,null,null,{"$error":"#VALUE!"},{"$error":"#VALUE!"}]
[null,null,null,null,null,{"$error":"#VALUE!"},{"$error":"#VALUE!"}]
[null,null,null,null,null,{"$error":"#VALUE!"},{"$error":"#VALUE!"}]
[null,null,null,null,null,{"$error":"#VALUE!"},{"$error":"#VALUE!"}]
[null,null,null,null,null,{"$error":"#VALUE!"},{"$error":"#VALUE!"}]
[null,null,null,null,null,{"$error":"#VALUE!"},{"$error":"#VALUE!"}]
[null,null,null,null,null,{"$error":"#VALUE!"},{"$error":"#VALUE!"}]
[null,null,null,null,null,{"$error":"#VALUE!"},{"$error":"#VALUE!"}]
[null,null,null,null,null,{"$error":"#VALUE!"},{"$error":"#VALUE!"}]
[null,null,null,null,null,{"$error":"#VALUE!"},{"$error":"#VALUE!"}]
[null,null,null,null,null,{"$error":"#VALUE!"},{"$error":"#VALUE!"}]
[null,null,null,null,null,{"$error":"#VALUE!"},{"$error":"#VALUE!"}]
[null,null,null,null,null,{"$error":"#VALUE!"},{"$error":"#VALUE!"}]
[null,null,null,null,null,{"$error":"#VALUE!"},{"$error":"#VALUE!"}]
[null,null,null,null,null,{"$error":"#VALUE!"},{"$error":"#VALUE!"}]
[null,null,null,null,null,{"$error":"#VALUE!"},{"$error":"#VALUE!"}]
[null,null,null,null,null,{"$error":"#VALUE!"},{"$error":"#VALUE!"}]
[null,null,null,null,null,{"$error":"#VALUE!"},{"$error":"#VALUE!"}]
[null,null,null,null,null,{"$error":"#VALUE!"},{"$error":"#VALUE!"}]
[null,null,null,null,null,{"$error":"#VALUE!"},{"$error":"#VALUE!"}]
[null,null,null,null,null,{"$error":"#VALUE!"},{"$error":"#VALUE!"}]
[null,null,null,null,null,{"$error":"#VALUE!"},{"$error":"#VALUE!"}]
[null,null,null,null,null,{"$error":"#VALUE!"},{"$error":"#VALUE!"}]
[null,null,null,null,null,{"$error":"#VALUE!"},{"$error":"#VALUE!"}]
[null,null,null,null,null,{"$error":"#VALUE!"},{"$error":"#VALUE!"}]
[null,null,null,null,null,{"$error":"#VALUE!"},{"$error":"#VALUE!"}]
[null,null,null,null,null,{"$error":"#VALUE!"},{"$error":"#VALUE!"}]
[null,null,null,null,null,{"$error":"#VALUE!"},{"$error":"#VALUE!"}]
[null,null,null,null,null,{"$error":"#VALUE!"},{"$error":"#VALUE!"}]
[null,null,null,null,null,{"$error":"#VALUE!"},{"$error":"#VALUE!"}]
[null,null,null,null,null,{"$error":"#VALUE!"},{"$error":"#VALUE!"}]
[null,null,null,null,null,{"$error":"#VALUE!"},{"$error":"#VALUE!"}]
[null,null,null,null,null,{"$error":"#VALUE!"},{"$error":"#VALUE!"}]
[null,null,null,null,null,{"$error":"#VALUE!"},{"$error":"#VALUE!"}]
[null,null,null,null,null,{"$error":"#VALUE!"},{"$error":"#VALUE!"}]
[null,null,null,null,null,{"$error":"#VALUE!"},{"$error":"#VALUE!"}]
[null,null,null,null,null,{"$error":"#VALUE!"},{"$error":"#VALUE!"}]
[null,null,null,null,null,{"$error":"#VALUE!"},{"$error":"#VALUE!"}]
[null,null,null,null,null,{"$error":"#VALUE!"},{"$error":"#VALUE!"}]
[null,null,null,null,null,{"$error":"#VALUE!"},{"$error":"#VALUE!"}]
[null,null,null,null,null,{"$error":"#VALUE!"},{"$error":"#VALUE!"}]
[null,null,null,null,null,{"$error":"#VALUE!"},{"$error":"#VALUE!"}]
[null,null,null,null,null,{"$error":"#VALUE!"},{"$error":"#VALUE!"}]
[null,null,null,null,null,{"$error":"#VALUE!"},{"$error":"#VALUE!"}]
[null,null,null,null,null,{"$error":"#VALUE!"},{"$error":"#VALUE!"}]
[null,null,null,null,null,{"$error":"#VALUE!"},{"$error":"#VALUE!"}]
[null,null,null,null,null,{"$error":"#VALUE!"},{"$error":"#VALUE!"}]
[null,null,null,null,null,{"$error":"#VALUE!"},{"$error":"#VALUE!"}]
[null,null,null,null,null,{"$error":"#VALUE!"},{"$error":"#VALUE!"}]
[null,null,null,null,null,{"$error":"#VALUE!"},{"$error":"#VALUE!"}]
[null,null,null,null,null,{"$error":"#VALUE!"},{"$error":"#VALUE!"}]
[null,null,null,null,null,{"$error":"#VALUE!"},{"$error":"#VALUE!"}]
[null,null,null,null,null,{"$error":"#VALUE!"},{"$error":"#VALUE!"}]
[null,null,null,null,null,{"$error":"#VALUE!"},{"$error":"#VALUE!"}]
[null,null,null,null,null,{"$f":"MID(A70,1,FIND(\".\",A70)-1)","v":{"$error":"#VALUE!"}},{"$error":"#VALUE!"}]
[null,null,null,null,null,{"$error":"#VALUE!"},{"$f":"CONCATENATE(F71,\".zip\")","v":{"$error":"#VALUE!"}}]
[null,null,null,null,null,{"$error":"#VALUE!"},{"$error":"#VALUE!"}]
[null,null,null,null,null,{"$error":"#VALUE!"},{"$error":"#VALUE!"}]
[null,null,null,null,null,{"$error":"#VALUE!"},{"$error":"#VALUE!"}]
[null,null,null,null,null,{"$error":"#VALUE!"},{"$error":"#VALUE!"}]
[null,null,null,null,null,{"$error":"#VALUE!"},{"$error":"#VALUE!"}]
[null,null,null,null,null,{"$error":"#VALUE!"},{"$error":"#VALUE!"}]
[null,null,null,null,null,{"$error":"#VALUE!"},{"$error":"#VALUE!"}]
[null,null,null,null,null,{"$error":"#VALUE!"},{"$error":"#VALUE!"}]
[null,null,null,null,null,{"$error":"#VALUE!"},{"$error":"#VALUE!"}]
[null,null,null,null,null,{"$error":"#VALUE!"},{"$error":"#VALUE!"}]
[null,null,null,null,null,{"$error":"#VALUE!"},{"$error":"#VALUE!"}]
[null,null,null,null,null,{"$error":"#VALUE!"},{"$error":"#VALUE!"}]
[null,null,null,null,null,{"$error":"#VALUE!"},{"$error":"#VALUE!"}]
[null,null,null,null,null,{"$error":"#VALUE!"},{"$error":"#VALUE!"}]
[null,null,null,null,null,{"$error":"#VALUE!"},{"$error":"#VALUE!"}]
[null,null,null,null,null,{"$error":"#VALUE!"},{"$error":"#VALUE!"}]
[null,null,null,null,null,{"$error":"#VALUE!"},{"$error":"#VALUE!"}]
[null,null,null,null,null,{"$error":"#VALUE!"},{"$error":"#VALUE!"}]
[null,null,null,null,null,{"$error":"#VALUE!"},{"$error":"#VALUE!"}]
[null,null,null,null,null,{"$error":"#VALUE!"},{"$error":"#VALUE!"}]
[null,null,null,null,null,{"$error":"#VALUE!"},{"$error":"#VALUE!"}]
[null,null,null,null,null,{"$error":"#VALUE!"},{"$error":"#VALUE!"}]
[null,null,null,null,null,{"$error":"#VALUE!"},{"$error":"#VALUE!"}]
[null,null,null,null,null,{"$error":"#VALUE!"},{"$error":"#VALUE!"}]
[null,null,null,null,null,{"$error":"#VALUE!"},{"$error":"#VALUE!"}]
[null,null,null,null,null,{"$error":"#VALUE!"},{"$error":"#VALUE!"}]
[null,null,null,null,null,{"$error":"#VALUE!"},{"$error":"#VALUE!"}]
[null,null,null,null,null,{"$error":"#VALUE!"},{"$error":"#VALUE!"}]
[null,null,null,null,null,{"$error":"#VALUE!"},{"$error":"#VALUE!"}]
[null,null,null,null,null,{"$error":"#VALUE!"},{"$error":"#VALUE!"}]
[null,null,null,null,null,{"$error":"#VALUE!"},{"$error":"#VALUE!"}]
[null,null,null,null,null,{"$error":"#VALUE!"},{"$error":"#VALUE!"}]
[null,null,null,null,null,{"$error":"#VALUE!"},{"$error":"#VALUE!"}]
[null,null,null,null,null,{"$error":"#VALUE!"},{"$error":"#VALUE!"}]
[null,null,null,null,null,{"$error":"#VALUE!"},{"$error":"#VALUE!"}]
[null,null,null,null,null,{"$error":"#VALUE!"},{"$error":"#VALUE!"}]
[null,null,null,null,null,{"$error":"#VALUE!"},{"$error":"#VALUE!"}]
[null,null,null,null,null,{"$error":"#VALUE!"},{"$error":"#VALUE!"}]
[null,null,null,null,null,{"$error":"#VALUE!"},{"$error":"#VALUE!"}]
[null,null,null,null,null,{"$error":"#VALUE!"},{"$error":"#VALUE!"}]
[null,null,null,null,null,{"$error":"#VALUE!"},{"$error":"#VALUE!"}]
[null,null,null,null,null,{"$error":"#VALUE!"},{"$error":"#VALUE!"}]
[null,null,null,null,null,{"$error":"#VALUE!"},{"$error":"#VALUE!"}]
[null,null,null,null,null,{"$error":"#VALUE!"},{"$error":"#VALUE!"}]
[null,null,null,null,null,{"$error":"#VALUE!"},{"$error":"#VALUE!"}]
[null,null,null,null,null,{"$error":"#VALUE!"},{"$error":"#VALUE!"}]
[null,null,null,null,null,{"$error":"#VALUE!"},{"$error":"#VALUE!"}]
[null,null,null,null,null,{"$error":"#VALUE!"},{"$error":"#VALUE!"}]
[null,null,null,null,null,{"$error":"#VALUE!"},{"$error":"#VALUE!"}]
[null,null,null,null,null,{"$error":"#VALUE!"},{"$error":"#VALUE!"}]
[null,null,null,null,null,{"$error":"#VALUE!"},{"$error":"#VALUE!"}]
[null,null,null,null,null,{"$error":"#VALUE!"},{"$error":"#VALUE!"}]
[null,null,null,null,null,{"$error":"#VALUE!"},{"$error":"#VALUE!"}]
[null,null,null,null,null,{"$error":"#VALUE!"},{"$error":"#VALUE!"}]
[null,null,null,null,null,{"$error":"#VALUE!"},{"$error":"#VALUE!"}]
[null,null,null,null,null,{"$error":"#VALUE!"},{"$error":"#VALUE!"}]
[null,null,null,null,null,{"$error":"#VALUE!"},{"$error":"#VALUE!"}]
[null,null,null,null,null,{"$error":"#VALUE!"},{"$error":"#VALUE!"}]
[null,null,null,null,null,{"$error":"#VALUE!"},{"$error":"#VALUE!"}]
[null,null,null,null,null,{"$error":"#VALUE!"},{"$error":"#VALUE!"}]
[null,null,null,null,null,{"$error":"#VALUE!"},{"$error":"#VALUE!"}]
[null,null,null,null,null,{"$error":"#VALUE!"},{"$error":"#VALUE!"}]
[null,null,null,null,null,{"$f":"MID(A134,1,FIND(\".\",A134)-1)","v":{"$error":"#VALUE!"}},{"$error":"#VALUE!"}]
[null,null,null,null,null,{"$error":"#VALUE!"},{"$f":"CONCATENATE(F135,\".zip\")","v":{"$error":"#VALUE!"}}]
[null,null,null,null,null,{"$error":"#VALUE!"},{"$error":"#VALUE!"}]
[null,null,null,null,null,{"$error":"#VALUE!"},{"$error":"#VALUE!"}]
[null,null,null,null,null,{"$error":"#VALUE!"},{"$error":"#VALUE!"}]
[null,null,null,null,null,{"$error":"#VALUE!"},{"$error":"#VALUE!"}]
[null,null,null,null,null,{"$error":"#VALUE!"},{"$error":"#VALUE!"}]
[null,null,null,null,null,{"$error":"#VALUE!"},{"$error":"#VALUE!"}]
[null,null,null,null,null,{"$error":"#VALUE!"},{"$error":"#VALUE!"}]
[null,null,null,null,null,{"$error":"#VALUE!"},{"$error":"#VALUE!"}]
[null,null,null,null,null,{"$error":"#VALUE!"},{"$error":"#VALUE!"}]
[null,null,null,null,null,{"$error":"#VALUE!"},{"$error":"#VALUE!"}]
[null,null,null,null,null,{"$error":"#VALUE!"},{"$error":"#VALUE!"}]
[null,null,null,null,null,{"$error":"#VALUE!"},{"$error":"#VALUE!"}]
[null,null,null,null,null,{"$error":"#VALUE!"},{"$error":"#VALUE!"}]
[null,null,null,null,null,{"$error":"#VALUE!"},{"$error":"#VALUE!"}]
[null,null,null,null,null,{"$error":"#VALUE!"},{"$error":"#VALUE!"}]
[null,null,null,null,null,{"$error":"#VALUE!"},{"$error":"#VALUE!"}]
[null,null,null,null,null,{"$error":"#VALUE!"},{"$error":"#VALUE!"}]
[null,null,null,null,null,{"$error":"#VALUE!"},{"$error":"#VALUE!"}]
[null,null,null,null,null,{"$error":"#VALUE!"},{"$error":"#VALUE!"}]
[null,null,null,null,null,{"$error":"#VALUE!"},{"$error":"#VALUE!"}]
[null,null,null,null,null,{"$error":"#VALUE!"},{"$error":"#VALUE!"}]
[null,null,null,null,null,{"$error":"#VALUE!"},{"$error":"#VALUE!"}]
[null,null,null,null,null,{"$error":"#VALUE!"},{"$error":"#VALUE!"}]
[null,null,null,null,null,{"$error":"#VALUE!"},{"$error":"#VALUE!"}]
[null,null,null,null,null,{"$error":"#VALUE!"},{"$error":"#VALUE!"}]
[null,null,null,null,null,{"$error":"#VALUE!"},{"$error":"#VALUE!"}]
[null,null,null,null,null,{"$error":"#VALUE!"},{"$error":"#VALUE!"}]
[null,null,null,null,null,{"$error":"#VALUE!"},{"$error":"#VALUE!"}]
[null,null,null,null,null,{"$error":"#VALUE!"},{"$error":"#VALUE!"}]
[null,null,null,null,null,{"$error":"#VALUE!"},{"$error":"#VALUE!"}]
[null,null,null,null,null,{"$error":"#VALUE!"},{"$error":"#VALUE!"}]
[null,null,null,null,null,{"$error":"#VALUE!"},{"$error":"#VALUE!"}]
[null,null,null,null,null,{"$error":"#VALUE!"},{"$error":"#VALUE!"}]
[null,null,null,null,null,{"$error":"#VALUE!"},{"$error":"#VALUE!"}]
[null,null,null,null,null,{"$error":"#VALUE!"},{"$error":"#VALUE!"}]
[null,null,null,null,null,{"$error":"#VALUE!"},{"$error":"#VALUE!"}]
[null,null,null,null,null,{"$error":"#VALUE!"},{"$error":"#VALUE!"}]
[null,null,null,null,null,{"$error":"#VALUE!"},{"$error":"#VALUE!"}]
[null,null,null,null,null,{"$error":"#VALUE!"},{"$error":"#VALUE!"}]
[null,null,null,null,null,{"$error":"#VALUE!"},{"$error":"#VALUE!"}]
[null,null,null,null,null,{"$error":"#VALUE!"},{"$error":"#VALUE!"}]
[null,null,null,null,null,{"$error":"#VALUE!"},{"$error":"#VALUE!"}]
[null,null,null,null,null,{"$error":"#VALUE!"},{"$error":"#VALUE!"}]
[null,null,null,null,null,{"$error":"#VALUE!"},{"$error":"#VALUE!"}]
[null,null,null,null,null,{"$error":"#VALUE!"},{"$error":"#VALUE!"}]
[null,null,null,null,null,{"$error":"#VALUE!"},{"$error":"#VALUE!"}]
[null,null,null,null,null,{"$error":"#VALUE!"},{"$error":"#VALUE!"}]
[null,null,null,null,null,{"$error":"#VALUE!"},{"$error":"#VALUE!"}]
[null,null,null,null,null,{"$error":"#VALUE!"},{"$error":"#VALUE!"}]
[null,null,null,null,null,{"$error":"#VALUE!"},{"$error":"#VALUE!"}]
[null,null,null,null,null,{"$error":"#VALUE!"},{"$error":"#VALUE!"}]
[null,null,null,null,null,{"$error":"#VALUE!"},{"$error":"#VALUE!"}]
[null,null,null,null,null,{"$error":"#VALUE!"},{"$error":"#VALUE!"}]
[null,null,null,null,null,{"$error":"#VALUE!"},{"$error":"#VALUE!"}]
[null,null,null,null,null,{"$error":"#VALUE!"},{"$error":"#VALUE!"}]
[null,null,null,null,null,{"$error":"#VALUE!"},{"$error":"#VALUE!"}]
[null,null,null,null,null,{"$error":"#VALUE!"},{"$error":"#VALUE!"}]
[null,null,null,null,null,{"$error":"#VALUE!"},{"$error":"#VALUE!"}]
[null,null,null,null,null,{"$error":"#VALUE!"},{"$error":"#VALUE!"}]
[null,null,null,null,null,{"$error":"#VALUE!"},{"$error":"#VALUE!"}]
[null,null,null,null,null,{"$error":"#VALUE!"},{"$error":"#VALUE!"}]
[null,null,null,null,null,{"$error":"#VALUE!"},{"$error":"#VALUE!"}]
[null,null,null,null,null,{"$f":"MID(A198,1,FIND(\".\",A198)-1)","v":{"$error":"#VALUE!"}},{"$error":"#VALUE!"}]
[null,null,null,null,null,{"$error":"#VALUE!"},{"$f":"CONCATENATE(F199,\".zip\")","v":{"$error":"#VALUE!"}}]
[null,null,null,null,null,{"$error":"#VALUE!"},{"$error":"#VALUE!"}]
[null,null,null,null,null,{"$error":"#VALUE!"},{"$error":"#VALUE!"}]
[null,null,null,null,null,{"$error":"#VALUE!"},{"$error":"#VALUE!"}]
[null,null,null,null,null,{"$error":"#VALUE!"},{"$error":"#VALUE!"}]
[null,null,null,null,null,{"$error":"#VALUE!"},{"$error":"#VALUE!"}]